bitfinex/quotes_SOLUSD_20220130
["timestamp","ask_amount","ask_price","bid_price","bid_amount"]
[1643525931294,0.55,96.666,96.59,18.43]
[1643525931697,0.55,96.666,96.591,0.25]
[1643525932295,0.55,96.666,96.59,18.43]
[1643525932495,0.55,96.666,96.59,12.43]
[1643525932895,104.55,96.666,96.59,12.43]
[1643525933096,0.3,96.665,96.59,12.43]
[1643525933596,0.55,96.666,96.59,12.43]
[1643525933796,0.55,96.666,96.591,1.67681458]
[1643525933998,0.55,96.666,96.601,6.0]
[1643525934496,0.55,96.666,96.602,1.67681458]
[1643525934698,0.3,96.666,96.601,6.0]
[1643525935920,0.55,96.666,96.601,6.0]
[1643525936120,0.55,96.666,96.6,12.43]
[1643525936522,104.0,96.659,96.542,2.89857307]
[1643525936721,104.0,96.656,96.56,12.43]
[1643525936922,0.2,96.655,96.56,12.43]
[1643525937120,0.55,96.655,96.56,12.43]
[1643525937723,0.55,96.655,96.561,0.25]
[1643525937921,0.55,96.655,96.56,12.43]
[1643525938122,15.535,96.64,96.56,12.43]
[1643525938322,41.80885643,96.639,96.56,12.43]
[1643525938522,0.3,96.638,96.57,6.0]
[1643525938724,0.3,96.638,96.57,18.43]
[1643525938923,2.95669142,96.674,96.571,1.67681458]
[1643525939123,2.95669142,96.674,96.571,1.17681458]
[1643525939124,6.0,96.664,96.571,1.17681458]
[1643525939325,0.25,96.663,96.571,1.17681458]
[1643525939524,3.20669142,96.663,96.571,1.17681458]
[1643525939724,43.42133655,96.662,96.571,1.17681458]
[1643525939927,0.3,96.661,96.571,1.17681458]
[1643525940126,15.532,96.66,96.581,6.0]
[1643525940424,0.55,96.659,96.581,6.0]
[1643525941225,0.3,96.659,96.582,1.67681458]
[1643525941429,0.3,96.661,96.59,12.43]
[1643525941725,12.43,96.72,96.59,12.43]
[1643525942130,104.0,96.691,96.59,12.43]
[1643525942534,104.0,96.689,96.59,12.43]
[1643525942730,32.79179197,96.688,96.591,0.25]
[1643525942932,2.95669142,96.713,96.591,0.25]
[1643525942933,104.0,96.687,96.591,0.25]
[1643525943132,2.87635647,96.728,96.6,6.0]
[1643525943334,23.4581,96.742,96.61,12.43]
[1643525943531,104.0,96.711,96.62,6.0]
[1643525943732,104.0,96.711,96.62,16.39]
[1643525943932,39.08308171,96.71,96.621,0.25]
[1643525944135,104.0,96.709,96.62,6.0]
[1643525945134,0.25,96.708,96.62,6.0]
[1643525945531,39.08308171,96.71,96.62,6.0]
[1643525945732,39.08308171,96.71,96.621,1.92595909]
[1643525945931,39.08308171,96.71,96.62,6.0]
[1643525946132,6.0,96.7,96.61,12.43]
[1643525946333,8.95669142,96.7,96.61,12.43]
[1643525946532,2.95669142,96.699,96.61,12.43]
[1643525946931,39.08308171,96.71,96.61,12.43]
[1643525946932,0.25,96.698,96.61,12.43]
[1643525947131,0.25,96.698,96.61,27.952]
[1643525947332,104.25,96.709,96.61,27.952]
[1643525947535,104.25,96.709,96.62,6.0]
[1643525947933,104.25,96.709,96.621,0.25]
[1643525948133,104.25,96.709,96.61,12.43]
[1643525948334,15.526,96.7,96.61,12.43]
[1643525948535,15.526,96.7,96.269,0.3]
[1643525948536,6.0,96.69,96.572,19.63075909]
[1643525948733,46.31066784,96.689,96.57,12.43]
[1643525949034,6.0,96.679,96.58,6.0]
[1643525949233,104.0,96.688,96.58,6.0]
[1643525949433,0.25,96.678,96.58,6.0]
[1643525950040,0.25,96.678,96.581,0.25]
[1643525950241,6.0,96.677,96.581,0.25]
[1643525950640,0.25,96.676,96.581,0.25]
[1643525951038,0.25,96.676,96.582,1.67595909]
[1643525951241,0.25,96.676,96.59,12.43]
[1643525951438,0.25,96.676,96.592,6.0]
[1643525951638,0.25,96.676,96.6,6.0]
[1643525951839,0.25,96.679,96.601,0.25]
[1643525952040,0.25,96.679,96.603,6.0]
[1643525952640,2.95669142,96.678,96.603,6.0]
[1643525952843,0.25,96.677,96.603,6.0]
[1643525954041,0.25,96.679,96.61,6.0]
[1643525954643,0.25,96.679,96.607,6.0]
[1643525955449,15.526,96.7,96.61,12.43]
[1643525955450,0.25,96.686,96.61,12.43]
[1643525955647,0.25,96.686,96.62,6.0]
[1643525955846,0.25,96.688,96.62,6.0]
[1643525957247,104.25,96.688,96.61,12.43]
[1643525957646,1.43756585,96.686,96.61,12.43]
[1643525957846,0.25,96.685,96.61,12.43]
[1643525958050,1.43756585,96.677,96.61,12.43]
[1643525958248,1.43756585,96.676,96.61,12.43]
[1643525958452,1.43756585,96.674,96.61,12.43]
[1643525958648,37.17462788,96.673,96.61,12.43]
[1643525959248,37.17462788,96.673,96.611,0.25]
[1643525959450,0.25,96.672,96.611,0.25]
[1643525960557,1.43756585,96.68,96.611,0.25]
[1643525960558,1.43756585,96.68,96.62,6.0]
[1643525960752,1.43756585,96.69,96.63,12.43]
[1643525961052,4.31600749,96.745,96.63,12.43]
[1643525961053,0.2430592,96.701,96.64,6.0]
[1643525961253,0.2430592,96.701,96.65,12.43]
[1643525961652,0.2430592,96.701,96.66,6.0]
[1643525961952,0.2430592,96.701,96.67,12.43]
[1643525963575,0.2430592,96.701,96.66,6.0]
[1643525963777,0.2430592,96.701,96.65,12.43]
[1643525964077,0.2430592,96.701,96.66,6.0]
[1643525965876,0.2430592,96.701,96.65,12.43]
[1643525968281,0.2430592,96.701,96.651,1.67538196]
[1643525968481,0.2430592,96.701,96.66,6.0]
[1643525968679,0.2430592,96.701,96.661,6.0]
[1643525968881,0.2430592,96.701,96.662,0.25]
[1643525969083,0.2430592,96.701,96.67,6.0]
[1643525970683,0.2430592,96.701,96.671,1.67538196]
[1643525970986,0.2430592,96.701,96.67,6.0]
[1643525971383,0.2430592,96.701,96.67,12.43]
[1643525975791,0.2430592,96.701,96.66,6.0]
[1643525975990,0.2430592,96.701,96.66,14.9]
[1643525976591,0.0030592,96.701,96.66,14.9]
[1643525976790,0.0030592,96.701,96.671,104.0]
[1643525976991,0.0030592,96.701,96.68,14.9]
[1643525977191,0.0030592,96.701,96.681,6.0]
[1643525977391,0.0030592,96.701,96.69,6.0]
[1643525977593,0.0030592,96.701,96.691,6.0]
[1643525977792,0.0030592,96.701,96.691,6.25]
[1643525977991,0.0030592,96.701,96.7,6.0]
[1643525978392,0.0030592,96.701,96.7,6.25]
[1643525980397,0.0030592,96.701,96.7,6.0]
[1643525982698,0.4861184,96.701,96.7,6.0]
[1643525986609,0.4861184,96.701,96.69,14.9]
[1643525987207,0.4861184,96.701,96.652,17.33368663]
[1643525987208,13.1161184,96.701,96.67,14.9]
[1643525987407,13.1161184,96.701,96.63,14.9]
[1643525987607,0.25,96.7,96.63,14.9]
[1643525988631,15.525,96.7,96.63,14.9]
[1643525988831,0.25,96.699,96.63,14.9]
[1643525989633,15.526,96.69,96.63,14.9]
[1643525989932,0.25,96.689,96.63,14.9]
[1643525990934,0.25,96.698,96.63,14.9]
[1643525991634,2.95669142,96.697,96.594,47.3119]
[1643525991841,104.0,96.689,96.61,14.9]
[1643525992035,6.0,96.679,96.61,14.9]
[1643525992434,104.0,96.677,96.61,14.9]
[1643525992837,0.25,96.676,96.61,14.9]
[1643525993035,15.53,96.67,96.61,14.9]
[1643525993234,41.8047899,96.669,96.61,14.9]
[1643525993436,42.0547899,96.669,96.61,14.9]
[1643525993636,104.0,96.668,96.61,14.9]
[1643525993836,0.25,96.667,96.61,14.9]
[1643525994536,0.25,96.667,96.603,6.0]
[1643525994738,15.531,96.66,96.583,6.0]
[1643525994937,15.531,96.66,96.58,14.9]
[1643525995137,6.0,96.65,96.55,14.9]
[1643525995438,104.0,96.648,96.55,14.9]
[1643525995636,14.294682,96.647,96.55,14.9]
[1643525995936,3.20669142,96.647,96.55,14.9]
[1643525996135,22.9821,96.646,96.55,14.9]
[1643525996336,0.25,96.645,96.55,14.9]
[1643525996535,104.25,96.645,96.55,14.9]
[1643525996736,15.536,96.63,96.55,14.9]
[1643525996938,33.62772873,96.628,96.55,14.9]
[1643525997136,104.0,96.627,96.55,14.9]
[1643525998836,104.0,96.627,96.551,0.25]
[1643525999337,0.25,96.626,96.551,0.25]
[1643525999538,0.25,96.626,96.55,14.9]
[1643526000939,15.538,96.62,96.55,14.9]
[1643526001339,0.25,96.619,96.55,14.9]
[1643526002238,104.25,96.619,96.55,14.9]
[1643526002441,33.62772873,96.628,96.551,0.25]
[1643526002639,51.774,96.68,96.56,6.0]
[1643526002840,0.49,96.81,96.56,6.0]
[1643526002841,24.1935,96.695,96.57,14.9]
[1643526003041,39.7093,96.73,96.58,6.0]
[1643526003242,47.3278,96.729,96.59,14.9]
[1643526003440,2.95669142,96.716,96.59,14.9]
[1643526003642,33.87596895,96.7,96.59,14.9]
[1643526003843,24.9963,96.699,96.59,14.9]
[1643526004445,15.528,96.68,96.59,14.9]
[1643526004651,104.0,96.699,96.6,6.0]
[1643526004843,104.0,96.699,96.61,14.9]
[1643526005045,49.8273,96.727,96.62,6.0]
[1643526005244,49.8273,96.727,96.62,32.02]
[1643526005444,46.8062967,96.701,96.621,0.25]
[1643526005645,46.8062967,96.701,96.621,6.25]
[1643526005845,0.25,96.7,96.63,6.0]
[1643526006245,0.25,96.7,96.631,0.25]
[1643526006746,15.775,96.7,96.63,6.0]
[1643526006946,15.775,96.7,96.62,14.9]
[1643526009951,2.95669142,96.699,96.62,14.9]
[1643526010350,0.25,96.698,96.62,14.9]
[1643526011352,0.25,96.699,96.62,14.9]
[1643526013454,0.25,96.699,96.63,6.0]
[1643526013853,0.25,96.699,96.619,6.0]
[1643526014053,0.25,96.699,96.62,6.0]
[1643526014653,0.25,96.699,96.61,30.422]
[1643526014857,0.25,96.7,96.61,30.422]
[1643526015455,46.8062967,96.701,96.611,0.25]
[1643526016456,46.8062967,96.701,96.62,6.0]
[1643526016856,0.25,96.7,96.621,0.25]
[1643526017054,0.25,96.7,96.623,6.0]
[1643526017657,0.25,96.7,96.62,6.0]
[1643526018059,15.775,96.7,96.62,6.0]
[1643526018860,15.775,96.7,96.63,14.9]
[1643526019862,0.25,96.7,96.63,14.9]
[1643526021874,0.4861184,96.701,96.64,15.518]
[1643526022093,0.4861184,96.701,96.65,14.9]
[1643526022293,2.87635647,96.776,96.651,22.9058]
[1643526022496,47.6728,96.778,96.66,6.0]
[1643526022698,41.03319786,96.777,96.67,14.9]
[1643526022994,41.03319786,96.777,96.68,20.9]
[1643526023193,0.25,96.776,96.68,20.9]
[1643526023395,0.25,96.776,96.68,14.9]
[1643526023594,6.0,96.767,96.68,14.9]
[1643526023799,6.0,96.767,96.641,19.12785989]
[1643526023800,1.83050739,96.766,96.641,19.12785989]
[1643526023993,57.739,96.76,96.64,14.9]
[1643526024294,6.0,96.756,96.64,14.9]
[1643526024494,6.0,96.75,96.64,14.9]
[1643526024696,6.0,96.747,96.64,14.9]
[1643526024893,46.41716142,96.719,96.64,14.9]
[1643526025297,0.25,96.718,96.64,14.9]
[1643526025495,3.20669142,96.718,96.64,14.9]
[1643526025896,15.525,96.7,96.64,14.9]
[1643526026096,33.73264528,96.699,96.64,14.9]
[1643526026396,48.9569,96.729,96.64,14.9]
[1643526027096,15.521,96.72,96.64,14.9]
[1643526027297,39.11722295,96.719,96.65,6.0]
[1643526027497,39.11722295,96.719,96.65,20.9]
[1643526027697,39.11722295,96.719,96.65,14.9]
[1643526028899,39.11722295,96.719,96.651,0.25]
[1643526029096,0.25,96.718,96.651,0.25]
[1643526029297,0.25,96.718,96.65,14.9]
[1643526029897,39.11722295,96.719,96.65,14.9]
[1643526031299,0.25,96.718,96.65,14.9]
[1643526033697,104.25,96.718,96.65,14.9]
[1643526033899,104.25,96.718,96.63,6.0]
[1643526034098,24.5763,96.717,96.631,6.25]
[1643526034398,15.523,96.71,96.631,6.0]
[1643526034599,15.523,96.71,96.64,14.9]
[1643526034798,0.25,96.709,96.64,14.9]
[1643526035399,2.95669142,96.708,96.64,14.9]
[1643526035602,0.25,96.709,96.64,14.9]
[1643526036002,104.25,96.709,96.64,14.9]
[1643526038407,104.25,96.709,96.6,15.524]
[1643526038605,6.0,96.699,96.616,6.0]
[1643526038804,44.30830594,96.698,96.606,25.42208969]
[1643526039007,104.0,96.697,96.606,25.42208969]
[1643526039204,106.95669142,96.697,96.606,25.42208969]
[1643526039403,0.25,96.696,96.606,25.42208969]
[1643526039604,3.20669142,96.696,96.606,25.42208969]
[1643526039804,15.526,96.69,96.606,23.7706]
[1643526040006,15.526,96.69,96.593,1.65148969]
[1643526040007,6.0,96.68,96.593,1.65148969]
[1643526040304,33.09259121,96.678,96.57,14.9]
[1643526040504,6.0,96.668,96.57,14.9]
[1643526040707,104.0,96.666,96.57,14.9]
[1643526040905,15.531,96.66,96.57,14.9]
[1643526041106,42.08540875,96.659,96.57,14.9]
[1643526041306,0.25,96.658,96.57,14.9]
[1643526041706,104.25,96.658,96.57,14.9]
[1643526042308,15.533,96.65,96.57,14.9]
[1643526042510,104.0,96.649,96.57,14.9]
[1643526042708,104.25,96.649,96.57,14.9]
[1643526043609,107.20669142,96.649,96.57,14.9]
[1643526044007,15.535,96.64,96.57,14.9]
[1643526044207,104.0,96.638,96.55,14.9]
[1643526044409,104.0,96.638,96.52,14.9]
[1643526044608,6.0,96.628,96.52,14.9]
[1643526044808,104.0,96.626,96.52,14.9]
[1643526045008,6.0,96.616,96.52,14.9]
[1643526045209,15.54,96.6,96.52,14.9]
[1643526045409,46.49815533,96.599,96.52,14.9]
[1643526046411,15.542,96.59,96.52,14.9]
[1643526046609,104.0,96.589,96.52,14.9]
[1643526046809,104.25,96.589,96.52,14.9]
[1643526047514,104.25,96.589,96.5,14.9]
[1643526047515,36.18306554,96.579,96.5,14.9]
[1643526047912,0.25,96.578,96.5,14.9]
[1643526048113,104.25,96.578,96.5,14.9]
[1643526049116,15.546,96.57,96.5,14.9]
[1643526049516,15.546,96.57,96.51,6.0]
[1643526049717,15.546,96.57,96.501,1.65148969]
[1643526050119,104.0,96.578,96.5,14.9]
[1643526050822,0.25,96.577,96.5,14.9]
[1643526053033,15.546,96.57,96.5,14.9]
[1643526053433,104.25,96.569,96.5,14.9]
[1643526054031,2.95669142,96.568,96.5,14.9]
[1643526054230,2.95669142,96.568,96.482,47.6704]
[1643526054431,0.25,96.567,96.482,47.6704]
[1643526054831,2.95669142,96.566,96.482,47.6704]
[1643526055232,138.95292495,96.559,96.482,47.6704]
[1643526055632,0.25,96.558,96.482,47.6704]
[1643526056454,15.549,96.55,96.482,47.6704]
[1643526056653,104.0,96.549,96.482,47.6704]
[1643526056859,104.25,96.549,96.48,14.9]
[1643526058062,41.10604049,96.539,96.48,14.9]
[1643526058262,0.25,96.538,96.48,14.9]
[1643526059364,104.25,96.538,96.48,14.9]
[1643526059564,104.25,96.538,96.452,47.3606]
[1643526059764,104.25,96.538,96.462,6.0]
[1643526060170,104.25,96.538,96.463,0.25]
[1643526060566,104.25,96.538,96.47,6.0]
[1643526060766,104.25,96.538,96.471,0.25]
[1643526060969,104.0,96.538,96.471,0.25]
[1643526061168,104.0,96.538,96.47,6.0]
[1643526061169,0.25,96.537,96.47,6.0]
[1643526061968,104.0,96.538,96.46,14.9]
[1643526062269,104.0,96.538,96.395,4.34715008]
[1643526062270,104.0,96.519,96.44,14.9]
[1643526062470,2.95669142,96.549,96.44,14.9]
[1643526062669,2.95669142,96.549,96.45,6.0]
[1643526062871,104.0,96.573,96.46,14.9]
[1643526063070,104.0,96.573,96.47,6.0]
[1643526063268,3.20669142,96.572,96.471,23.2397]
[1643526063469,104.0,96.571,96.471,23.2397]
[1643526063672,104.0,96.571,96.481,6.0]
[1643526063869,0.25,96.57,96.482,0.25]
[1643526064071,0.25,96.57,96.482,6.0]
[1643526064469,0.25,96.57,96.49,6.0]
[1643526066068,0.25,96.57,96.49,20.9]
[1643526066272,15.796,96.57,96.49,14.9]
[1643526066468,15.796,96.57,96.5,6.0]
[1643526066670,104.0,96.569,96.49,14.9]
[1643526066870,0.25,96.568,96.49,14.9]
[1643526067269,3.20669142,96.568,96.49,14.9]
[1643526068071,15.548,96.56,96.49,14.9]
[1643526068268,0.25,96.559,96.49,14.9]
[1643526068670,0.25,96.559,96.5,6.0]
[1643526068874,0.25,96.559,96.501,0.25]
[1643526069272,0.25,96.559,96.49,6.0]
[1643526069471,0.25,96.568,96.49,6.0]
[1643526069670,0.25,96.568,96.491,0.25]
[1643526069872,0.25,96.568,96.49,6.0]
[1643526070178,0.25,96.568,96.48,14.9]
[1643526070772,0.25,96.568,96.481,0.25]
[1643526070973,15.547,96.56,96.481,0.25]
[1643526071476,0.25,96.559,96.481,0.25]
[1643526072173,0.25,96.559,96.48,14.9]
[1643526072574,15.549,96.55,96.48,14.9]
[1643526072773,146.10787263,96.549,96.48,14.9]
[1643526072974,41.85787263,96.549,96.48,14.9]
[1643526073174,0.25,96.548,96.48,14.9]
[1643526073979,104.25,96.548,96.49,6.0]
[1643526074376,104.25,96.548,96.481,6.0]
[1643526075777,104.25,96.548,96.482,4.09908195]
[1643526076177,104.25,96.548,96.492,6.0]
[1643526076580,104.25,96.548,96.476,2.89857307]
[1643526076777,104.25,96.548,96.476,0.25]
[1643526076977,104.25,96.548,96.477,4.09887836]
[1643526077189,15.549,96.55,96.478,0.25]
[1643526077382,2.95669142,96.576,96.488,104.0]
[1643526077581,2.87635647,96.633,96.5,14.9]
[1643526077781,6.0,96.623,96.511,104.0]
[1643526077981,2.87635647,96.633,96.521,6.0]
[1643526078183,41.44743913,96.648,96.53,14.9]
[1643526078382,41.44743913,96.648,96.531,23.014]
[1643526078582,2.95669142,96.647,96.541,6.0]
[1643526078783,0.25,96.646,96.542,0.25]
[1643526078983,15.536,96.63,96.542,0.25]
[1643526079185,43.38158019,96.628,96.542,0.25]
[1643526079582,43.38158019,96.628,96.55,14.9]
[1643526079783,43.38158019,96.628,96.551,0.25]
[1643526079983,43.38158019,96.628,96.55,14.9]
[1643526080385,0.25,96.627,96.551,0.25]
[1643526080784,43.38158019,96.628,96.551,0.25]
[1643526082210,0.25,96.627,96.551,0.25]
[1643526082711,104.0,96.619,96.55,14.9]
[1643526082911,104.0,96.617,96.53,14.9]
[1643526083112,104.0,96.606,96.484,2.89857307]
[1643526083310,127.3775,96.606,96.483,6.95076467]
[1643526083512,104.0,96.595,96.493,6.0]
[1643526083911,104.0,96.579,96.493,6.0]
[1643526084112,126.9205,96.579,96.493,6.0]
[1643526084315,0.25,96.578,96.494,0.25]
[1643526084511,0.25,96.578,96.5,6.0]
[1643526085114,0.25,96.578,96.501,0.25]
[1643526085613,0.25,96.578,96.502,4.04946405]
[1643526085814,0.25,96.578,96.503,0.25]
[1643526086014,0.25,96.578,96.504,6.0]
[1643526086213,15.545,96.58,96.504,6.0]
[1643526086214,0.25,96.579,96.504,6.0]
[1643526086615,0.25,96.579,96.5,6.0]
[1643526087217,0.25,96.579,96.501,4.04971058]
[1643526087617,0.25,96.579,96.511,6.0]
[1643526087916,0.25,96.579,96.5,14.9]
[1643526088117,0.25,96.579,96.501,6.0]
[1643526088317,0.25,96.579,96.501,6.25]
[1643526088717,0.25,96.579,96.51,6.0]
[1643526092128,2.95669142,96.578,96.5,14.9]
[1643526092332,0.25,96.577,96.5,14.9]
[1643526094832,45.90259671,96.568,96.5,14.9]
[1643526095034,104.0,96.567,96.5,14.9]
[1643526095233,104.0,96.567,96.46,15.546]
[1643526095234,104.0,96.557,96.462,2.89857307]
[1643526095433,122.52,96.557,96.462,2.89857307]
[1643526095633,0.25,96.556,96.462,2.89857307]
[1643526095833,3.20669142,96.556,96.461,4.05762927]
[1643526096034,0.25,96.556,96.461,4.05762927]
[1643526096233,0.25,96.556,96.461,6.95620234]
[1643526096435,0.25,96.556,96.462,0.25]
[1643526096735,0.25,96.556,96.471,6.0]
[1643526097037,42.55506925,96.539,96.473,6.0]
[1643526097239,42.55506925,96.539,96.47,6.0]
[1643526097436,0.25,96.538,96.474,0.25]
[1643526098639,0.25,96.538,96.473,0.25]
[1643526098840,0.25,96.538,96.463,0.25]
[1643526099239,0.25,96.538,96.464,4.05683976]
[1643526099641,0.25,96.538,96.465,0.25]
[1643526099839,0.25,96.538,96.466,4.05683976]
[1643526100245,0.25,96.538,96.467,0.25]
[1643526101272,0.25,96.538,96.463,0.25]
[1643526101471,0.25,96.538,96.464,4.05636811]
[1643526101770,0.25,96.538,96.465,0.25]
[1643526101971,0.25,96.538,96.466,4.05636811]
[1643526102475,0.25,96.538,96.467,0.25]
[1643526102875,0.25,96.538,96.486,1.41768509]
[1643526103275,0.25,96.538,96.487,1.41768509]
[1643526104680,0.25,96.538,96.488,1.41768509]
[1643526105076,0.25,96.538,96.487,1.41768509]
[1643526105277,0.25,96.538,96.488,1.41768509]
[1643526105477,0.25,96.538,96.489,1.41768509]
[1643526106479,0.25,96.538,96.487,1.41768509]
[1643526106878,104.25,96.538,96.487,1.41768509]
[1643526107282,104.25,96.538,96.483,1.41768509]
[1643526107480,2.95669142,96.537,96.482,1.41768509]
[1643526107679,0.25,96.538,96.487,1.41768509]
[1643526107978,0.25,96.538,96.463,4.05839467]
[1643526107979,0.25,96.538,96.488,1.41768509]
[1643526109184,0.25,96.538,96.487,1.41768509]
[1643526109383,0.25,96.538,96.488,1.41768509]
[1643526109785,0.25,96.538,96.472,6.0]
[1643526109786,0.25,96.538,96.49,1.41768509]
[1643526110183,0.25,96.538,96.491,1.66768509]
[1643526110384,0.25,96.538,96.493,1.41768509]
[1643526110585,0.25,96.538,96.494,1.41768509]
[1643526110784,24.4909,96.559,96.495,0.25]
[1643526110986,24.4909,96.559,96.495,1.66768509]
[1643526111183,104.0,96.558,96.495,1.66768509]
[1643526111384,104.0,96.556,96.494,1.41768509]
[1643526111586,0.25,96.555,96.499,1.41768509]
[1643526112289,0.25,96.555,96.5,1.41768509]
[1643526113886,0.25,96.555,96.498,1.41768509]
[1643526114089,0.25,96.555,96.497,1.41768509]
[1643526114287,0.25,96.555,96.498,1.41768509]
[1643526115593,0.25,96.555,96.475,4.06386499]
[1643526115594,0.25,96.556,96.499,1.41768509]
[1643526115790,0.25,96.556,96.5,1.41768509]
[1643526116191,0.25,96.556,96.501,1.41768509]
[1643526116391,104.25,96.556,96.501,1.41768509]
[1643526116791,2.95669142,96.555,96.501,1.41768509]
[1643526117290,0.25,96.554,96.501,1.41768509]
[1643526117494,0.25,96.554,96.5,1.41768509]
[1643526118293,0.25,96.555,96.501,1.41768509]
[1643526118492,0.25,96.555,96.475,4.06514828]
[1643526118493,0.25,96.555,96.502,1.41768509]
[1643526119619,0.25,96.555,96.503,1.41768509]
[1643526120520,0.25,96.555,96.505,1.41768509]
[1643526121721,0.25,96.555,96.506,1.41768509]
[1643526121921,2.95669142,96.554,96.506,1.41768509]
[1643526122220,2.95669142,96.554,96.508,1.41768509]
[1643526122421,2.95669142,96.554,96.481,2.89857307]
[1643526122422,0.25,96.553,96.509,1.41768509]
[1643526122725,0.25,96.553,96.512,1.41768509]
[1643526122921,0.25,96.553,96.482,0.25]
[1643526122922,0.25,96.553,96.513,1.41768509]
[1643526123122,0.25,96.553,96.514,1.41768509]
[1643526123322,39.6294553,96.557,96.514,1.41768509]
[1643526123323,0.25,96.556,96.514,1.41768509]
[1643526123522,0.25,96.556,96.516,1.41768509]
[1643526123923,0.25,96.556,96.515,1.41768509]
[1643526124123,104.25,96.556,96.515,1.41768509]
[1643526124325,104.25,96.556,96.514,1.41768509]
[1643526124523,104.25,96.556,96.516,1.41768509]
[1643526124722,104.25,96.556,96.515,1.41768509]
[1643526124923,0.25,96.556,96.515,1.41768509]
[1643526125123,2.95669142,96.555,96.515,1.41768509]
[1643526125325,0.25,96.554,96.518,1.41768509]
[1643526125523,0.25,96.554,96.517,1.41768509]
[1643526125723,15.549,96.55,96.516,1.41768509]
[1643526126127,0.25,96.549,96.516,1.41768509]
[1643526126424,0.25,96.549,96.511,1.41768509]
[1643526126623,0.25,96.549,96.51,1.41768509]
[1643526126825,0.25,96.549,96.507,1.41768509]
[1643526127427,33.60095141,96.539,96.508,1.41768509]
[1643526127625,6.0,96.529,96.508,1.41768509]
[1643526128028,0.25,96.528,96.502,1.41768509]
[1643526128228,0.25,96.528,96.503,1.41768509]
[1643526128631,6.25,96.528,96.503,1.41768509]
[1643526128836,28.46725051,96.56,96.504,15.86179774]
[1643526129029,1.74032308,96.605,96.514,6.0]
[1643526129230,4.31600749,96.676,96.533,1.41768509]
[1643526129433,4.52380907,96.695,96.546,1.41768509]
[1643526129434,0.0017598,96.634,96.546,1.41768509]
[1643526129630,4.31600749,96.689,96.546,1.41768509]
[1643526129631,0.0017598,96.645,96.56,14.9]
[1643526129831,0.0017598,96.645,96.57,186.31]
[1643526130030,0.0017598,96.667,96.58,14.9]
[1643526130230,0.0017598,96.667,96.59,186.31]
[1643526130434,0.0017598,96.667,96.6,201.21]
[1643526130634,0.0017598,96.683,96.61,6.0]
[1643526130831,0.0017598,96.699,96.62,14.9]
[1643526131031,0.0017598,96.734,96.63,192.31]
[1643526131232,0.0017598,96.74,96.64,14.9]